{"text_format":"1","workbook":"xlsx","n_sheets":1,"sheets":["Plantilla de presupuesto CBVI "],"not_rendered":{"charts":0,"images":0,"macros":1,"external_links":0,"defined_names":3,"comments":0,"pivot_tables":0},"unopened":[],"bounds":{"document_bytes":16777216,"sheet_cells":100000,"rows_first":2000,"rows_last":500,"rows_between":2000,"halvings":0,"cell_chars":16384,"cell_head_chars":4096},"cells_cut":0,"cells_raw":0,"read":"whole","date_system":"1900"}

{"sheet":"Plantilla de presupuesto CBVI ","index":0,"n_rows":155,"n_cols":8,"rows_kept":155,"cut":false,"hidden":false,"merged":[[23,0,23,7],[9,0,9,1],[9,3,9,4],[9,6,9,7],[0,0,1,7],[4,0,4,7],[8,0,8,7],[16,0,16,1],[16,3,16,4],[16,6,16,7],[13,0,13,5],[13,6,13,7],[15,0,15,7],[20,0,20,5],[20,6,20,7],[22,0,22,5],[22,6,22,7],[2,0,3,7],[5,0,7,7],[43,0,43,5],[43,6,43,7],[32,0,32,7],[36,0,36,1],[36,2,36,3],[36,4,36,5],[36,6,36,7],[24,0,31,7],[33,0,35,7],[86,0,87,7],[70,0,70,7],[45,0,45,7],[46,0,52,7],[53,0,53,7],[54,0,54,7],[55,0,55,1],[55,6,55,7],[59,0,59,5],[59,6,59,7],[61,0,61,7],[62,0,68,7],[69,0,69,7],[71,0,71,1],[71,2,71,3],[71,4,71,5],[71,6,71,7],[75,0,75,5],[75,6,75,7],[77,0,77,7],[78,0,84,7],[85,0,85,7],[106,0,106,7],[113,0,113,7],[114,0,114,1],[114,2,114,3],[114,6,114,7],[111,0,111,5],[111,6,111,7],[88,0,88,1],[88,2,88,3],[88,4,88,5],[88,6,88,7],[92,0,92,5],[92,6,92,7],[94,0,94,7],[95,0,101,7],[102,0,102,7],[103,0,105,7],[121,0,121,7],[122,0,128,7],[129,0,129,7],[130,0,130,7],[131,0,131,1],[131,2,131,3],[131,4,131,5],[131,6,131,7],[118,0,118,5],[118,6,118,7],[120,0,120,5],[120,6,120,7],[144,0,145,7],[146,0,146,3],[146,4,146,7],[147,0,147,3],[148,0,148,3],[135,0,135,5],[135,6,135,7],[137,0,137,7],[138,0,142,7],[154,0,154,3],[147,4,147,7],[148,4,148,7],[149,4,149,7],[150,4,150,7],[151,4,151,7],[152,4,152,7],[153,4,153,7],[154,4,154,7],[149,0,149,3],[150,0,150,3],[151,0,151,3],[152,0,152,3],[153,0,153,3]]}
[" Programa de Intervención contra la Violencia Comunitaria SFY23 \nHoja de cálculo y descripción del presupuesto\n"]
[]
["La hoja de calculo para el detalle del presupuesto sirve para preparar el presupuesto solicitado como soporte del proyecto propuesto. Se debe proporcionar toda la información solicitada.  En el espacio descriptivo, usted debe proporcionar la justificación de todos los gastos enumerados y una explicación de por qué los costes son necesarios para el éxito del proyecto.  "]
[]
[]
["A. Sueldos - Para cada miembro del personal que recibe el 100% del salario de su agencia, enumere cada puesto por nombre del empleado y título. Indique la tarifa salarial anual y el porcentaje de tiempo que se dedicará a este proyecto. La remuneración de los empleados que participan en las actividades de la subvención debe ser coherente con la que se paga por un trabajo similar dentro de la organización solicitante entre todas las fuentes de financiación. Agregue las líneas que sean necesarias. "]
[]
[]
["Personal a tiempo completo "]
["\nNombre/puesto en el proyecto ",null,"Salario","Porcentaje de tiempo de subvención ",null,"Número de meses ","Monto de la subvención "]
[null,null,null,null,null,null,{"$f":"(C11/12)*D11*F11","v":0}]
[null,null,null,null,null,null,{"$f":"(C12/12)*D12*F12","v":0}]
[null,null,null,null,null,null,{"$f":"(C13/12)*D13*F13","v":0}]
["Subtotal de personal a tiempo completo: ",null,null,null,null,null,{"$f":"SUM(INDIRECT(\"G8:G\"&ROW()-1))","v":0}]
[]
["Personal por horas "]
["\n Nombre/puesto en el proyecto",null,"Salario por hora ","Número de horas por semana ",null,"\n# de semanas "," Monto de la subvención"]
[null,null,null,null,null,null,{"$f":"C18*D18*F18","v":0}]
[null,null,null,null,null,null,{"$f":"C21*D21*F21","v":0}]
[null,null,null,null,null,null,{"$f":"C21*D21*F21","v":0}]
["Subtotal de personal por horas: ",null,null,null,null,null,{"$f":"SUM(HSalary[[#All],[Column7]])","v":0}]
[]
["Salarios Total: ",null,null,null,null,null,{"$f":"SUM(G14,G21)","v":0}]
["Descripción de todos los sueldos y salarios:"]
[]
[]
[]
[]
[]
[]
[]
[]
[]
["B. Beneficios adicionales - Los beneficios adicionales deben basarse en los costes reales conocidos o en una tarifa negociada aprobada. Los beneficios adicionales son para todo el personal que figura en la categoría A y sólo para el importe de la subvención solicitada en la categoría A. Los beneficios adicionales en las horas extras se limitan a la FICA, la indemnización por accidente laboral y la indemnización por desempleo. Agregue las líneas que sean necesarias. En la descripción, proporcione un desglose de lo que constituye el porcentaje de la tasa adicional que se solicita. "]
[]
[]
[" Nombre/puesto en el proyecto",null,"Base salarial ",null,"Tasa de beneficios adicionales ",null," Monto de la subvención"]
[null,null,null,null,null,null,{"$f":"Fringe[[#This Row],[Column3]]*Fringe[[#This Row],[Column5]]","v":0}]
[null,null,null,null,null,null,{"$f":"Fringe[[#This Row],[Column3]]*Fringe[[#This Row],[Column5]]","v":0}]
[null,null,null,null,null,null,{"$f":"Fringe[[#This Row],[Column3]]*Fringe[[#This Row],[Column5]]","v":0}]
[null,null,null,null,null,null,{"$f":"Fringe[[#This Row],[Column3]]*Fringe[[#This Row],[Column5]]","v":0}]
[null,null,null,null,null,null,{"$f":"Fringe[[#This Row],[Column3]]*Fringe[[#This Row],[Column5]]","v":0}]
[null,null,null,null,null,null,{"$f":"Fringe[[#This Row],[Column3]]*Fringe[[#This Row],[Column5]]","v":0}]
["Total:",null,null,null,null,null,{"$f":"SUM(Fringe[[#All],[Column7]])","v":0}]
[]
["Descripción de los beneficios adicionales: "]
[]
[]
[]
[]
[]
[]
[]
[]
["C. Transporte - Enumere todos los costes asociados con las actividades de transporte propuestas. Incluya: tipo de viaje, ubicación, etc. En la descripción del presupuesto, indique la base de cálculo. Agregue las líneas que sean necesarias."]
["Propósito del viaje",null,"Ubicación","Costo","Cantidad","Tipo de coste ( millaje, hotel, peajes, etc.) "," Monto de la subvención"]
[null,null,null,null,null,null,{"$f":"Travel[[#This Row],[Column4]]*Travel[[#This Row],[Column5]]","v":0}]
[null,null,null,null,null,null,{"$f":"Travel[[#This Row],[Column4]]*Travel[[#This Row],[Column5]]","v":0}]
[null,null,null,null,null,null,{"$f":"Travel[[#This Row],[Column4]]*Travel[[#This Row],[Column5]]","v":0}]
[" Total:",null,null,null,null,null,{"$f":"SUM(Travel[[#All],[Column7]])","v":0}]
[]
["Descripción del viaje: "]
[]
[]
[]
[]
[]
[]
[]
[]
["D. Equipo - Enumere los artículos no fungibles con un valor superior a 1.000 dólares que se van a comprar. Amplíe y añada líneas según sea necesario. "]
["Elemento",null,"Número de unidades ",null,"Coste por unidad ",null," Monto de la subvención"]
[null,null,null,null,null,null,{"$f":"Equipment[[#This Row],[Column3]]*Equipment[[#This Row],[Column5]]","v":0}]
[null,null,null,null,null,null,{"$f":"Equipment[[#This Row],[Column3]]*Equipment[[#This Row],[Column5]]","v":0}]
[null,null,null,null,null,null,{"$f":"Equipment[[#This Row],[Column3]]*Equipment[[#This Row],[Column5]]","v":0}]
["Total:",null,null,null,null,null,{"$f":"SUM(Equipment[[#All],[Column7]])","v":0}]
[]
["Descripción del equipo: "]
[]
[]
[]
[]
[]
[]
[]
[]
["E. Suministros - Enumere los artículos por tipo (equipo valorado en menos de 1.000 dólares, material de oficina, correo, material de formación, papel de copia y otros artículos fungibles tales como libros, etc.) y muestre la base de cálculo. Por lo general, los suministros incluyen cualquier material fungible o consumido durante el transcurso del proyecto. Agregue las líneas que sean necesarias."]
[]
["Elemento",null," Número de unidades",null,"Coste por unidad",null,"Monto de la subvención"]
[null,null,null,null,null,null,{"$f":"Supplies[[#This Row],[Column3]]*Supplies[[#This Row],[Column5]]","v":0}]
[null,null,null,null,null,null,{"$f":"Supplies[[#This Row],[Column3]]*Supplies[[#This Row],[Column5]]","v":0}]
[null,null,null,null,null,null,{"$f":"Supplies[[#This Row],[Column3]]*Supplies[[#This Row],[Column5]]","v":0}]
["Total:",null,null,null,null,null,{"$f":"SUM(Supplies[[#All],[Column7]])","v":0}]
[]
["Descripción de los suministros: "]
[]
[]
[]
[]
[]
[]
[]
[]
["F.  Consultores/Contratos/subvenciones - Proporcione una descripción del producto o servicio que se obtendrá por contrato y una estimación del coste. Se anima a los solicitantes a promover la competencia libre y abierta en la adjudicación de contratos/subvenciones. Agregue las líneas que sean necesarias.\n               1.  Honorarios de los consultores:  Por cada consultor, introduzca el nombre, si lo conoce, el servicio que va a prestar, los honorarios por hora o por día (jornada de 8 horas), y el tiempo estimado en el proyecto.   "]
[]
[]
["Consultores/Contratos/Subvenciones "]
["Nombre del proveedor ","Indique si se trata de un consultor, un contrato de adquisición o una subvención ","Servicio que se va a prestar ","Cantidad","Base","Costo","Duración","Costo"]
[null,null,null,null,null,null,null,{"$f":"Consultants[[#This Row],[Column4]]*Consultants[[#This Row],[Column6]]*Consultants[[#This Row],[Column7]]","v":0}]
[null,null,null,null,null,null,null,{"$f":"Consultants[[#This Row],[Column4]]*Consultants[[#This Row],[Column6]]*Consultants[[#This Row],[Column7]]","v":0}]
[null,null,null,null,null,null,null,{"$f":"Consultants[[#This Row],[Column4]]*Consultants[[#This Row],[Column6]]*Consultants[[#This Row],[Column7]]","v":0}]
[" Consultores/Contratos/Subvenciones: ",null,null,null,null,null,null,{"$f":"SUM(Consultants[[#All],[Column8]])","v":0}]
[]
["Gastos del consultor - Enumere todos los gastos que se pagarán con la subvención al consultor individual, además de sus gastos (viajes, comidas, alojamiento, etc.). Agregue las líneas que sean necesarias."]
["Elemento",null,"Ubicación",null,"Coste Por U nidad"," Número de unidades","Importe de la subvención solicitada "]
[null,null,null,null,null,null,{"$f":"ConsultantExpense[[#This Row],[Column5]]*ConsultantExpense[[#This Row],[Column6]]","v":0}]
[null,null,null,null,null,null,{"$f":"ConsultantExpense[[#This Row],[Column5]]*ConsultantExpense[[#This Row],[Column6]]","v":0}]
[null,null,null,null,null,null,{"$f":"ConsultantExpense[[#This Row],[Column5]]*ConsultantExpense[[#This Row],[Column6]]","v":0}]
["Subtotal de gastos de consultor: ",null,null,null,null,null,{"$f":"SUM(ConsultantExpense[[#All],[Column7]])","v":0}]
[]
[" Total de Consultores/Contratos/Subvenciones: ",null,null,null,null,null,{"$f":"SUM(H112,G119)","v":0}]
["Descripción para Consultores/Contratos/Subvenciones: "]
[]
[]
[]
[]
[]
[]
[]
[]
["G. Otros gastos - Enumere los conceptos (por ejemplo, alquiler, fotocopias, teléfono, servicios de conserjería, etc.) por tipo principal y la base del cálculo. Proporcione una explicación del cálculo en la descripción. Agregue las líneas que sean necesarias."]
["Descripción ( defina la unidad) ",null,"Coste Por Unidad",null,"Número de unidades",null,"Monto de la subvención"]
[null,null,null,null,null,null,{"$f":"Other[[#This Row],[Column3]]*Other[[#This Row],[Column5]]","v":0}]
[null,null,null,null,null,null,{"$f":"Other[[#This Row],[Column3]]*Other[[#This Row],[Column5]]","v":0}]
[null,null,null,null,null,null,{"$f":"Other[[#This Row],[Column3]]*Other[[#This Row],[Column5]]","v":0}]
[" Total:",null,null,null,null,null,{"$f":"SUM(Other[[#All],[Column7]])","v":0}]
[]
["Descripción de otros costes: "]
[]
[]
[]
[]
[]
[]
["Resumen del presupuesto del programa CBVI para el año fiscal 23 "]
[]
["Categoría presupuestaria ",null,null,null," Importe de la subvención solicitada"]
["A. Salarios ",null,null,null,{"$f":"G23","v":0}]
["B. Beneficios adicionales",null,null,null,{"$f":"G44","v":0}]
["C. Viajes",null,null,null,{"$f":"G60","v":0}]
["D. Equipo",null,null,null,{"$f":"G76","v":0}]
["E. Suministros",null,null,null,{"$f":"G93","v":0}]
["F. Consultores/Contratistas/Subvenciones ",null,null,null,{"$f":"G121","v":0}]
["G. Otros ",null,null,null,{"$f":"G136","v":0}]
["COSTES TOTALES DEL PROYECTO ",null,null,null,{"$f":"SUM(E148:H154)","v":0}]